[Event "Live Chess"]
[Site "Chess.com"]
[Date "2023.05.21"]
[Round "-"]
[White "Outspanner"]
[Black "Pandreq"]
[Result "1/2-1/2"]
[WhiteElo "1536"]
[BlackElo "1269"]
[TimeControl "300"]
[EndTime "23:17:20 PDT"]
[Termination "Game drawn - timeout vs insufficient material"]

1. d4 {[%clk 0:04:57.7]} 1... d5 {[%clk 0:04:58.4]} 2. Nc3 {[%clk 0:04:50.5]}
2... Nf6 {[%clk 0:04:56.5]} 3. Bf4 {[%clk 0:04:46.7]} 3... a6 {[%clk 0:04:46.8]}
4. e3 {[%clk 0:04:40.8]} 4... Bf5 {[%clk 0:04:43.3]} 5. f3 {[%clk 0:04:39.7]}
5... e6 {[%clk 0:04:39.1]} 6. g4 {[%clk 0:04:37]} 6... Bg6 {[%clk 0:04:34.4]} 7.
h4 {[%clk 0:04:36.5]} 7... h5 {[%clk 0:04:30]} 8. g5 {[%clk 0:04:28.9]} 8...
Nfd7 {[%clk 0:04:26.6]} 9. Bd3 {[%clk 0:04:28.5]} 9... Bxd3 {[%clk 0:04:16.9]}
10. Qxd3 {[%clk 0:04:28.4]} 10... Nc6 {[%clk 0:04:15.2]} 11. Nge2 {[%clk
0:04:01.6]} 11... Bb4 {[%clk 0:04:03]} 12. a3 {[%clk 0:03:52.9]} 12... Ba5
{[%clk 0:04:01.5]} 13. b4 {[%clk 0:03:41.6]} 13... Bb6 {[%clk 0:03:56.9]} 14.
Na4 {[%clk 0:03:41.1]} 14... Qe7 {[%clk 0:03:51.3]} 15. Nc5 {[%clk 0:03:31.3]}
15... O-O-O {[%clk 0:03:45.7]} 16. Nxd7 {[%clk 0:03:12]} 16... Qxd7 {[%clk
0:03:40.9]} 17. b5 {[%clk 0:03:11.5]} 17... axb5 {[%clk 0:03:35.6]} 18. Qxb5
{[%clk 0:03:09.6]} 18... Na7 {[%clk 0:03:29.1]} 19. Qb3 {[%clk 0:02:55.9]} 19...
Qb5 {[%clk 0:03:16.9]} 20. Qxb5 {[%clk 0:02:36.5]} 20... Nxb5 {[%clk 0:03:15.6]}
21. Kf2 {[%clk 0:02:26.2]} 21... Kd7 {[%clk 0:03:06.5]} 22. Rhb1 {[%clk
0:02:15.4]} 22... Nd6 {[%clk 0:02:54.8]} 23. Nc3 {[%clk 0:01:56.9]} 23... Nc4
{[%clk 0:02:37.6]} 24. Ke2 {[%clk 0:01:46.9]} 24... Ra8 {[%clk 0:02:32.9]} 25.
a4 {[%clk 0:01:42.7]} 25... Ba5 {[%clk 0:02:14.6]} 26. Nb5 {[%clk 0:01:40.2]}
26... c6 {[%clk 0:02:03.7]} 27. Na3 {[%clk 0:01:36.1]} 27... b6 {[%clk
0:01:22.1]} 28. Nxc4 {[%clk 0:01:13.5]} 28... dxc4 {[%clk 0:01:22]} 29. Be5
{[%clk 0:01:12.7]} 29... Rhg8 {[%clk 0:01:14.3]} 30. e4 {[%clk 0:01:01.7]} 30...
g6 {[%clk 0:01:12]} 31. Rd1 {[%clk 0:00:53.5]} 31... Rgc8 {[%clk 0:01:02.1]} 32.
f4 {[%clk 0:00:42.4]} 32... b5 {[%clk 0:00:57]} 33. axb5 {[%clk 0:00:35.6]}
33... cxb5 {[%clk 0:00:56]} 34. d5 {[%clk 0:00:35.3]} 34... Rd8 {[%clk
0:00:45.9]} 35. dxe6+ {[%clk 0:00:28.3]} 35... Kxe6 {[%clk 0:00:43.7]} 36. Rxd8
{[%clk 0:00:24.5]} 36... Rxd8 {[%clk 0:00:36.8]} 37. Bc3 {[%clk 0:00:17.3]}
37... Bc7 {[%clk 0:00:31.1]} 38. f5+ {[%clk 0:00:15]} 38... Ke7 {[%clk
0:00:26.9]} 39. Bf6+ {[%clk 0:00:11.9]} 39... Ke8 {[%clk 0:00:25.2]} 40. Bxd8
{[%clk 0:00:11.8]} 40... Bxd8 {[%clk 0:00:24.6]} 41. Rd1 {[%clk 0:00:11.1]}
41... Bc7 {[%clk 0:00:22]} 42. Rd5 {[%clk 0:00:10.1]} 42... Ke7 {[%clk
0:00:18.9]} 43. Kf3 {[%clk 0:00:09]} 43... gxf5 {[%clk 0:00:15.7]} 44. Rxb5
{[%clk 0:00:07.7]} 44... fxe4+ {[%clk 0:00:13.6]} 45. Kxe4 {[%clk 0:00:07.6]}
45... Bg3 {[%clk 0:00:11.9]} 46. Rc5 {[%clk 0:00:06.9]} 46... Bxh4 {[%clk
0:00:10.5]} 47. Rxc4 {[%clk 0:00:06.6]} 47... Bxg5 {[%clk 0:00:09.4]} 48. Rc5
{[%clk 0:00:05.8]} 48... f6 {[%clk 0:00:07.6]} 49. c4 {[%clk 0:00:05.7]} 49...
Kd7 {[%clk 0:00:05.6]} 50. Rc7+ {[%clk 0:00:05.6]} 50... Kxc7 {[%clk 0:00:04.2]}
51. Kf5 {[%clk 0:00:05]} 51... Kd7 {[%clk 0:00:03.5]} 52. c5 {[%clk 0:00:04.6]}
52... Kc6 {[%clk 0:00:02.8]} 53. Kg6 {[%clk 0:00:02.5]} 53... Kxc5 {[%clk
0:00:02.7]} 54. Kxh5 {[%clk 0:00:01.9]} 54... Be3 {[%clk 0:00:01]} 55. Kg4
{[%clk 0:00:01.8]} 1/2-1/2

[Event "Live Chess"]
[Site "Chess.com"]
[Date "2023.05.21"]
[Round "-"]
[White "elephantgerrald"]
[Black "nigelst"]
[Result "0-1"]
[WhiteElo "369"]
[BlackElo "1720"]
[TimeControl "300"]
[EndTime "23:17:22 PDT"]
[Termination "nigelst won by checkmate"]

1. e4 {[%clk 0:04:58]} 1... c6 {[%clk 0:04:59]} 2. d4 {[%clk 0:04:56.7]} 2... d5
{[%clk 0:04:57.7]} 3. e5 {[%clk 0:04:55.5]} 3... c5 {[%clk 0:04:56.6]} 4. dxc5
{[%clk 0:04:53.6]} 4... e6 {[%clk 0:04:55.2]} 5. Be3 {[%clk 0:04:50]} 5... Nd7
{[%clk 0:04:47.7]} 6. Nf3 {[%clk 0:04:44.5]} 6... Bxc5 {[%clk 0:04:45.5]} 7.
Bxc5 {[%clk 0:04:42.8]} 7... Nxc5 {[%clk 0:04:43.8]} 8. Qe2 {[%clk 0:04:36.6]}
8... Qb6 {[%clk 0:04:40.2]} 9. Qb5+ {[%clk 0:04:31.8]} 9... Qxb5 {[%clk
0:04:37.4]} 10. Bxb5+ {[%clk 0:04:29.9]} 10... Bd7 {[%clk 0:04:36.8]} 11. Bxd7+
{[%clk 0:04:28.5]} 11... Kxd7 {[%clk 0:04:35.6]} 12. Ng5 {[%clk 0:04:24.9]}
12... Ke7 {[%clk 0:04:29.6]} 13. O-O {[%clk 0:04:19]} 13... h6 {[%clk 0:04:27]}
14. Nf3 {[%clk 0:04:16.5]} 14... Rc8 {[%clk 0:04:23.9]} 15. Nc3 {[%clk
0:04:07.5]} 15... f6 {[%clk 0:04:13.8]} 16. exf6+ {[%clk 0:04:05.8]} 16... Nxf6
{[%clk 0:04:11.4]} 17. Rfe1 {[%clk 0:04:04.3]} 17... Nce4 {[%clk 0:03:57]} 18.
Nxe4 {[%clk 0:04:01.2]} 18... Nxe4 {[%clk 0:03:54.9]} 19. Ne5 {[%clk 0:03:58]}
19... Rhg8 {[%clk 0:03:34.4]} 20. Ng6+ {[%clk 0:03:53.5]} 20... Kd6 {[%clk
0:03:32.7]} 21. c3 {[%clk 0:03:49.2]} 21... Rc4 {[%clk 0:03:15.5]} 22. Rad1
{[%clk 0:03:41.5]} 22... Re8 {[%clk 0:03:03.3]} 23. Rd3 {[%clk 0:03:35.6]} 23...
Kc7 {[%clk 0:02:53.2]} 24. b3 {[%clk 0:03:26.1]} 24... Rc6 {[%clk 0:02:46.8]}
25. Ne5 {[%clk 0:03:20.9]} 25... Rxc3 {[%clk 0:02:40.1]} 26. Rxc3+ {[%clk
0:03:16.1]} 26... Nxc3 {[%clk 0:02:37.8]} 27. Rc1 {[%clk 0:03:13.2]} 27... d4
{[%clk 0:02:36.4]} 28. Kf1 {[%clk 0:03:11.3]} 28... Kb6 {[%clk 0:02:28.2]} 29.
Nc4+ {[%clk 0:03:07.3]} 29... Ka6 {[%clk 0:02:23.2]} 30. Ke1 {[%clk 0:02:51.5]}
30... e5 {[%clk 0:02:20.2]} 31. a4 {[%clk 0:02:37.4]} 31... Nd5 {[%clk
0:02:12.5]} 32. Nd6 {[%clk 0:02:28]} 32... Rf8 {[%clk 0:01:59.8]} 33. Rc5 {[%clk
0:02:21.1]} 33... Nf4 {[%clk 0:01:49.1]} 34. b4 {[%clk 0:02:18.1]} 34... Nd3+
{[%clk 0:01:46.7]} 35. Kd2 {[%clk 0:02:15.4]} 35... Nxc5 {[%clk 0:01:45.1]} 36.
b5+ {[%clk 0:02:13.7]} 36... Ka5 {[%clk 0:01:37.3]} 37. Nc4+ {[%clk 0:02:06.9]}
37... Kb4 {[%clk 0:01:35.7]} 38. Nxe5 {[%clk 0:01:48.4]} 38... Rxf2+ {[%clk
0:01:32.2]} 39. Ke1 {[%clk 0:01:46.6]} 39... Rxg2 {[%clk 0:01:30.1]} 40. h4
{[%clk 0:01:43]} 40... Ne4 {[%clk 0:01:24.5]} 41. Nd3+ {[%clk 0:01:40.3]} 41...
Kc3 {[%clk 0:01:20.1]} 42. Kf1 {[%clk 0:01:33.9]} 42... Kxd3 {[%clk 0:01:15.3]}
43. Kxg2 {[%clk 0:01:32.3]} 43... Ke2 {[%clk 0:01:12.3]} 44. a5 {[%clk
0:01:28.8]} 44... d3 {[%clk 0:01:10.5]} 45. b6 {[%clk 0:01:28]} 45... axb6
{[%clk 0:01:09.1]} 46. a6 {[%clk 0:01:26.5]} 46... bxa6 {[%clk 0:01:07.5]} 47.
h5 {[%clk 0:01:25.2]} 47... d2 {[%clk 0:01:05.7]} 48. Kh2 {[%clk 0:01:16.5]}
48... d1=Q {[%clk 0:00:58.7]} 49. Kh3 {[%clk 0:01:12.2]} 49... Qf1+ {[%clk
0:00:55.2]} 50. Kh4 {[%clk 0:01:08.9]} 50... Qf4+ {[%clk 0:00:51.8]} 51. Kh3
{[%clk 0:01:07.7]} 51... Nf2+ {[%clk 0:00:47.9]} 52. Kg2 {[%clk 0:01:05.7]}
52... Qf3+ {[%clk 0:00:46.6]} 53. Kh2 {[%clk 0:01:02.4]} 53... Ng4+ {[%clk
0:00:42.4]} 54. Kg1 {[%clk 0:00:59.8]} 54... Qf2+ {[%clk 0:00:41.3]} 55. Kh1
{[%clk 0:00:58]} 55... Qh2# {[%clk 0:00:39.9]} 0-1

[Event "Live Chess"]
[Site "Chess.com"]
[Date "2023.05.21"]
[Round "-"]
[White "Biranidun"]
[Black "Supertromp"]
[Result "1-0"]
[WhiteElo "2560"]
[BlackElo "2142"]
[TimeControl "300"]
[EndTime "23:17:35 PDT"]
[Termination "Biranidun won by resignation"]

1. e4 {[%clk 0:04:58.4]} 1... c5 {[%clk 0:04:58.4]} 2. Nf3 {[%clk 0:04:56.9]}
2... d6 {[%clk 0:04:57.7]} 3. d4 {[%clk 0:04:56.3]} 3... cxd4 {[%clk 0:04:57.6]}
4. Nxd4 {[%clk 0:04:56.2]} 4... Nf6 {[%clk 0:04:56.9]} 5. Nc3 {[%clk 0:04:55.9]}
5... g6 {[%clk 0:04:56.2]} 6. Be3 {[%clk 0:04:55.3]} 6... Bg7 {[%clk 0:04:55.4]}
7. f3 {[%clk 0:04:55]} 7... O-O {[%clk 0:04:54.4]} 8. Qd2 {[%clk 0:04:54.7]}
8... Nc6 {[%clk 0:04:53.8]} 9. O-O-O {[%clk 0:04:53.7]} 9... d5 {[%clk
0:04:53.2]} 10. exd5 {[%clk 0:04:53.1]} 10... Nxd5 {[%clk 0:04:52.3]} 11. Nxc6
{[%clk 0:04:52.8]} 11... bxc6 {[%clk 0:04:51.7]} 12. Bd4 {[%clk 0:04:52.7]}
12... e5 {[%clk 0:04:50.9]} 13. Bc5 {[%clk 0:04:51.4]} 13... Re8 {[%clk
0:04:50.5]} 14. Ne4 {[%clk 0:04:44.7]} 14... Qc7 {[%clk 0:04:49.3]} 15. h4
{[%clk 0:04:38.5]} 15... f5 {[%clk 0:04:45.9]} 16. Nd6 {[%clk 0:04:37.9]} 16...
Rd8 {[%clk 0:04:45.1]} 17. Nxc8 {[%clk 0:04:37.1]} 17... Raxc8 {[%clk
0:04:44.3]} 18. h5 {[%clk 0:04:34.8]} 18... Nb6 {[%clk 0:04:43.6]} 19. Bxb6
{[%clk 0:04:33.8]} 19... Rxd2 {[%clk 0:04:41.7]} 20. Bc4+ {[%clk 0:04:29.8]}
20... Kf8 {[%clk 0:04:37]} 21. Bxc7 {[%clk 0:04:28.9]} 21... Rxd1+ {[%clk
0:04:34]} 22. Rxd1 {[%clk 0:04:28.8]} 22... Bh6+ {[%clk 0:04:32.9]} 23. Kb1
{[%clk 0:04:27.3]} 23... Rxc7 {[%clk 0:04:32.1]} 24. Rd6 {[%clk 0:04:26.6]}
24... Kg7 {[%clk 0:04:30.4]} 25. Re6 {[%clk 0:04:20.8]} 25... Bf4 {[%clk
0:04:24.7]} 26. a4 {[%clk 0:04:13.2]} 26... gxh5 {[%clk 0:03:39.9]} 27. Bd3
{[%clk 0:04:12.3]} 27... Rf7 {[%clk 0:02:33.8]} 28. Rxc6 {[%clk 0:04:10.2]}
28... Rf6 {[%clk 0:02:33.4]} 29. Rc7+ {[%clk 0:04:07.2]} 29... Rf7 {[%clk
0:02:21.5]} 30. Rxf7+ {[%clk 0:04:00.3]} 30... Kxf7 {[%clk 0:02:21.4]} 31. Bxf5
{[%clk 0:04:00]} 31... h6 {[%clk 0:02:20.8]} 32. c3 {[%clk 0:03:56.1]} 32... Kf6
{[%clk 0:02:18.6]} 33. Bh3 {[%clk 0:03:42.9]} 33... Ke7 {[%clk 0:02:10]} 34. Kc2
{[%clk 0:03:42.3]} 34... Kd6 {[%clk 0:02:09.2]} 35. Kd3 {[%clk 0:03:41.5]} 35...
h4 {[%clk 0:01:57.4]} 36. b4 {[%clk 0:03:40.4]} 36... Kd5 {[%clk 0:01:53.1]} 37.
Bf5 {[%clk 0:03:38.6]} 37... Kd6 {[%clk 0:01:46.1]} 38. Be4 {[%clk 0:03:37.3]}
38... Bc1 {[%clk 0:01:40.6]} 39. c4 {[%clk 0:03:36.4]} 39... Ba3 {[%clk
0:01:37.1]} 40. c5+ {[%clk 0:03:35.5]} 40... Kc7 {[%clk 0:01:32.4]} 41. Kc4
{[%clk 0:03:34.9]} 41... Bb2 {[%clk 0:01:31.7]} 42. b5 {[%clk 0:03:31]} 42...
Bd4 {[%clk 0:01:29.7]} 43. a5 {[%clk 0:03:29.4]} 43... Be3 {[%clk 0:01:22.1]}
44. b6+ {[%clk 0:03:27.6]} 44... axb6 {[%clk 0:01:19.6]} 45. cxb6+ {[%clk
0:03:21.8]} 45... Kb8 {[%clk 0:01:18.7]} 46. Kb5 {[%clk 0:03:20.9]} 1-0

[Event "Live Chess"]
[Site "Chess.com"]
[Date "2023.05.21"]
[Round "-"]
[White "Duke_of_Bebington"]
[Black "Nazar_777"]
[Result "1-0"]
[WhiteElo "1573"]
[BlackElo "1597"]
[TimeControl "300"]
[EndTime "23:17:41 PDT"]
[Termination "Duke_of_Bebington won by checkmate"]

1. e4 {[%clk 0:04:57.8]} 1... e6 {[%clk 0:04:55.5]} 2. d4 {[%clk 0:04:55.6]}
2... a6 {[%clk 0:04:53.8]} 3. Nf3 {[%clk 0:04:50]} 3... h5 {[%clk 0:04:52.6]} 4.
Be3 {[%clk 0:04:39.5]} 4... c5 {[%clk 0:04:51.5]} 5. d5 {[%clk 0:04:30.4]} 5...
Nf6 {[%clk 0:04:49.9]} 6. Bd3 {[%clk 0:04:26.9]} 6... Qc7 {[%clk 0:04:48.3]} 7.
c4 {[%clk 0:04:18.7]} 7... b6 {[%clk 0:04:45.4]} 8. h3 {[%clk 0:04:10.8]} 8...
Be7 {[%clk 0:04:44]} 9. e5 {[%clk 0:04:07.5]} 9... Ng8 {[%clk 0:04:40.3]} 10. d6
{[%clk 0:04:05.9]} 10... Bxd6 {[%clk 0:04:39.2]} 11. exd6 {[%clk 0:04:04.4]}
11... Qxd6 {[%clk 0:04:38.2]} 12. Nc3 {[%clk 0:04:02.1]} 12... Qc7 {[%clk
0:04:36.8]} 13. a3 {[%clk 0:03:41.3]} 13... Nc6 {[%clk 0:04:35.5]} 14. Qd2
{[%clk 0:03:37.8]} 14... Nf6 {[%clk 0:04:33.8]} 15. Bg5 {[%clk 0:03:29.7]} 15...
Bb7 {[%clk 0:04:31.3]} 16. Bxf6 {[%clk 0:03:27.1]} 16... gxf6 {[%clk 0:04:30.1]}
17. Be4 {[%clk 0:03:17.4]} 17... Rc8 {[%clk 0:04:27.3]} 18. Rd1 {[%clk
0:03:11.9]} 18... f5 {[%clk 0:04:23.5]} 19. Bxc6 {[%clk 0:03:10.3]} 19... Bxc6
{[%clk 0:04:21.2]} 20. Qe3 {[%clk 0:03:05.5]} 20... Rg8 {[%clk 0:04:18.6]} 21.
Rg1 {[%clk 0:02:56.1]} 21... b5 {[%clk 0:04:15]} 22. Qxc5 {[%clk 0:02:46.5]}
22... Bxf3 {[%clk 0:04:10.4]} 23. Qxc7 {[%clk 0:02:45]} 23... Rxc7 {[%clk
0:04:07.9]} 24. cxb5 {[%clk 0:02:44.1]} 24... Bxd1 {[%clk 0:04:05.7]} 25. Nxd1
{[%clk 0:02:41.9]} 25... axb5 {[%clk 0:04:04.5]} 26. Kd2 {[%clk 0:02:37.5]}
26... Ke7 {[%clk 0:04:02.5]} 27. Ne3 {[%clk 0:02:35.4]} 27... d5 {[%clk
0:04:01.1]} 28. b4 {[%clk 0:02:33.7]} 28... Rgc8 {[%clk 0:03:57.9]} 29. Rd1
{[%clk 0:02:30.2]} 29... d4 {[%clk 0:03:54.3]} 30. Nf1 {[%clk 0:02:27.5]} 30...
e5 {[%clk 0:03:51.8]} 31. Ke1 {[%clk 0:02:26.6]} 31... Rc2 {[%clk 0:03:45.1]}
32. Nd2 {[%clk 0:02:24.4]} 32... e4 {[%clk 0:03:42.1]} 33. Nb3 {[%clk 0:02:23]}
33... d3 {[%clk 0:03:39]} 34. Nd4 {[%clk 0:02:21]} 34... Ra2 {[%clk 0:03:28.4]}
35. Nxf5+ {[%clk 0:02:19.5]} 35... Ke6 {[%clk 0:03:25.6]} 36. Nd4+ {[%clk
0:02:17.9]} 36... Ke5 {[%clk 0:03:24.1]} 37. Nxb5 {[%clk 0:02:16.7]} 37... Rcc2
{[%clk 0:03:15.9]} 38. f3 {[%clk 0:02:02.2]} 38... Rxg2 {[%clk 0:03:10.6]} 39.
Kf1 {[%clk 0:02:00.7]} 39... exf3 {[%clk 0:02:54.1]} 40. Nc3 {[%clk 0:01:55.9]}
40... Raf2+ {[%clk 0:02:32.5]} 41. Ke1 {[%clk 0:01:54.3]} 41... Kf4 {[%clk
0:02:24.6]} 42. Rxd3 {[%clk 0:01:50.5]} 42... Kg3 {[%clk 0:02:14.8]} 43. Ne4+
{[%clk 0:01:49.4]} 43... Kxh3 {[%clk 0:01:46.9]} 44. Nxf2+ {[%clk 0:01:48.2]}
44... Kg3 {[%clk 0:01:33.3]} 45. Ne4+ {[%clk 0:01:34.4]} 45... Kf4 {[%clk
0:01:31.3]} 46. Nf2 {[%clk 0:01:31.2]} 46... h4 {[%clk 0:01:28.1]} 47. b5 {[%clk
0:01:28.2]} 47... Kg3 {[%clk 0:01:20.5]} 48. Ne4+ {[%clk 0:01:26.8]} 48... Kf4
{[%clk 0:01:18.7]} 49. Nf2 {[%clk 0:01:25.5]} 49... h3 {[%clk 0:01:16.9]} 50.
Nxh3+ {[%clk 0:01:23.8]} 50... Ke4 {[%clk 0:01:13.7]} 51. Nf2+ {[%clk
0:01:19.1]} 51... Kf4 {[%clk 0:01:10.3]} 52. b6 {[%clk 0:01:16.9]} 52... Rg1+
{[%clk 0:01:08.3]} 53. Kd2 {[%clk 0:01:14.7]} 53... Rb1 {[%clk 0:01:05.5]} 54.
Rd6 {[%clk 0:01:04.4]} 54... Rb2+ {[%clk 0:01:02.5]} 55. Ke1 {[%clk 0:01:02.9]}
55... Ke3 {[%clk 0:01:00.5]} 56. Rd3+ {[%clk 0:01:01.1]} 56... Kf4 {[%clk
0:00:58.6]} 57. Rd4+ {[%clk 0:00:56.7]} 57... Ke3 {[%clk 0:00:57.3]} 58. Re4#
{[%clk 0:00:54.4]} 1-0

[Event "Live Chess"]
[Site "Chess.com"]
[Date "2023.05.21"]
[Round "-"]
[White "Jo1ts"]
[Black "martynstanley"]
[Result "1-0"]
[WhiteElo "834"]
[BlackElo "1009"]
[TimeControl "300"]
[EndTime "23:17:42 PDT"]
[Termination "Jo1ts won by checkmate"]

1. d4 {[%clk 0:04:56.9]} 1... e6 {[%clk 0:04:59.3]} 2. Bf4 {[%clk 0:04:54.7]}
2... d5 {[%clk 0:04:59.2]} 3. Nf3 {[%clk 0:04:51.5]} 3... c5 {[%clk 0:04:58.3]}
4. e3 {[%clk 0:04:49]} 4... Nc6 {[%clk 0:04:57.3]} 5. c3 {[%clk 0:04:47.7]} 5...
Qb6 {[%clk 0:04:55.5]} 6. Qc2 {[%clk 0:04:42.5]} 6... Nh6 {[%clk 0:04:53.6]} 7.
Bxh6 {[%clk 0:04:37.9]} 7... gxh6 {[%clk 0:04:52.2]} 8. Nbd2 {[%clk 0:04:35.1]}
8... Qc7 {[%clk 0:04:49]} 9. Bb5 {[%clk 0:04:32.2]} 9... b6 {[%clk 0:04:47.6]}
10. O-O {[%clk 0:04:23.1]} 10... Bb7 {[%clk 0:04:46.2]} 11. e4 {[%clk
0:04:11.7]} 11... dxe4 {[%clk 0:04:36.8]} 12. Nxe4 {[%clk 0:04:09.3]} 12...
O-O-O {[%clk 0:04:34.7]} 13. Qa4 {[%clk 0:04:02.3]} 13... a6 {[%clk 0:04:32.3]}
14. Bxa6 {[%clk 0:03:57.3]} 14... Bxa6 {[%clk 0:04:28.8]} 15. Qxa6+ {[%clk
0:03:55.1]} 15... Qb7 {[%clk 0:04:05.1]} 16. Qxb7+ {[%clk 0:03:50.9]} 16... Kxb7
{[%clk 0:04:03.4]} 17. dxc5 {[%clk 0:03:46]} 17... bxc5 {[%clk 0:04:02]} 18. b4
{[%clk 0:03:41.4]} 18... cxb4 {[%clk 0:03:59.6]} 19. cxb4 {[%clk 0:03:41.3]}
19... Bxb4 {[%clk 0:03:58.1]} 20. Rab1 {[%clk 0:03:37.1]} 20... Ra8 {[%clk
0:03:56.3]} 21. Rb2 {[%clk 0:03:26]} 21... Kc7 {[%clk 0:03:47.8]} 22. Ne5 {[%clk
0:03:19.7]} 22... Ra6 {[%clk 0:03:43.6]} 23. Nxc6 {[%clk 0:03:17.3]} 23... Rxc6
{[%clk 0:03:40.8]} 24. Rxb4 {[%clk 0:03:15.3]} 24... f5 {[%clk 0:03:38]} 25. Nf6
{[%clk 0:03:11.7]} 25... e5 {[%clk 0:03:31.5]} 26. h3 {[%clk 0:03:09.5]} 26...
Rxf6 {[%clk 0:03:29.2]} 27. Rd1 {[%clk 0:02:57.9]} 27... Rd6 {[%clk 0:03:27.2]}
28. Rc4+ {[%clk 0:02:42.7]} 28... Kd7 {[%clk 0:03:24.3]} 29. Rxd6+ {[%clk
0:02:37.5]} 29... Kxd6 {[%clk 0:03:23]} 30. Rb4 {[%clk 0:02:37]} 30... Rc8
{[%clk 0:03:19.3]} 31. Rb6+ {[%clk 0:02:30.1]} 31... Rc6 {[%clk 0:03:17.9]} 32.
Rxc6+ {[%clk 0:02:29.1]} 32... Kxc6 {[%clk 0:03:17.1]} 33. g4 {[%clk 0:02:28.5]}
33... fxg4 {[%clk 0:03:15.7]} 34. hxg4 {[%clk 0:02:28.1]} 34... Kc5 {[%clk
0:03:13.9]} 35. Kg2 {[%clk 0:02:27.5]} 35... Kc4 {[%clk 0:03:13]} 36. Kg3 {[%clk
0:02:26]} 36... Kb4 {[%clk 0:03:12.4]} 37. f4 {[%clk 0:02:25.2]} 37... exf4+
{[%clk 0:03:10.8]} 38. Kxf4 {[%clk 0:02:24.9]} 38... Ka3 {[%clk 0:03:10.3]} 39.
Kf5 {[%clk 0:02:24.3]} 39... Kxa2 {[%clk 0:03:09.8]} 40. Kf6 {[%clk 0:02:20.8]}
40... h5 {[%clk 0:03:07.5]} 41. gxh5 {[%clk 0:02:18.4]} 41... h6 {[%clk
0:03:06.6]} 42. Kg7 {[%clk 0:02:17.6]} 42... Kb3 {[%clk 0:03:06]} 43. Kxh6
{[%clk 0:02:17.5]} 43... Kc3 {[%clk 0:03:05.4]} 44. Kg7 {[%clk 0:02:16.9]} 44...
Kd4 {[%clk 0:03:05.1]} 45. h6 {[%clk 0:02:16.5]} 45... Kc4 {[%clk 0:03:04.3]}
46. h7 {[%clk 0:02:16.4]} 46... Kd4 {[%clk 0:03:02.9]} 47. h8=Q {[%clk
0:02:16.3]} 47... Kc5 {[%clk 0:03:02.3]} 48. Qd8 {[%clk 0:02:15.2]} 48... Kc4
{[%clk 0:03:01.1]} 49. Kf6 {[%clk 0:02:13.2]} 49... Kb3 {[%clk 0:02:59.6]} 50.
Qc8 {[%clk 0:02:10.2]} 50... Kb4 {[%clk 0:02:58.6]} 51. Ke5 {[%clk 0:02:09.5]}
51... Kb3 {[%clk 0:02:57.8]} 52. Kd4 {[%clk 0:02:08.7]} 52... Kb2 {[%clk
0:02:57]} 53. Kd3 {[%clk 0:02:07.7]} 53... Ka3 {[%clk 0:02:55.5]} 54. Qb8 {[%clk
0:02:05.5]} 54... Ka2 {[%clk 0:02:54.4]} 55. Kc3 {[%clk 0:02:02.9]} 55... Ka1
{[%clk 0:02:53]} 56. Kc2 {[%clk 0:02:01.5]} 56... Ka2 {[%clk 0:02:50.3]} 57.
Qb2# {[%clk 0:02:01.4]} 1-0

[Event "Live Chess"]
[Site "Chess.com"]
[Date "2023.05.21"]
[Round "-"]
[White "WilliamofOrange16th"]
[Black "KeithArkell"]
[Result "0-1"]
[WhiteElo "1815"]
[BlackElo "2562"]
[TimeControl "300"]
[EndTime "23:18:44 PDT"]
[Termination "KeithArkell won by resignation"]

1. b3 {[%clk 0:04:56.4]} 1... b5 {[%clk 0:04:58.6]} 2. Bb2 {[%clk 0:04:52.6]}
2... Bb7 {[%clk 0:04:57.8]} 3. Nf3 {[%clk 0:04:48.5]} 3... e6 {[%clk 0:04:55.8]}
4. e3 {[%clk 0:04:47.8]} 4... b4 {[%clk 0:04:53.7]} 5. a3 {[%clk 0:04:46.2]}
5... a5 {[%clk 0:04:52.4]} 6. axb4 {[%clk 0:04:45.3]} 6... axb4 {[%clk
0:04:52.1]} 7. Rxa8 {[%clk 0:04:44.7]} 7... Bxa8 {[%clk 0:04:52]} 8. d4 {[%clk
0:04:38.8]} 8... Nf6 {[%clk 0:04:50.7]} 9. Nbd2 {[%clk 0:04:37.4]} 9... c5
{[%clk 0:04:49.9]} 10. c3 {[%clk 0:04:35.1]} 10... bxc3 {[%clk 0:04:48.7]} 11.
Bxc3 {[%clk 0:04:34.5]} 11... cxd4 {[%clk 0:04:47.7]} 12. Nxd4 {[%clk
0:04:33.2]} 12... Nc6 {[%clk 0:04:46.8]} 13. N2f3 {[%clk 0:04:31.8]} 13... Nxd4
{[%clk 0:04:45.5]} 14. Nxd4 {[%clk 0:04:29.4]} 14... Qb6 {[%clk 0:04:40.8]} 15.
f3 {[%clk 0:03:47.5]} 15... Nd5 {[%clk 0:04:37.7]} 16. Bd2 {[%clk 0:03:45]}
16... Bb4 {[%clk 0:04:36.8]} 17. Bc4 {[%clk 0:03:41.6]} 17... Nxe3 {[%clk
0:04:34.1]} 18. Qe2 {[%clk 0:03:36.2]} 18... Bxd2+ {[%clk 0:04:28.1]} 19. Qxd2
{[%clk 0:03:35.2]} 19... Qxd4 {[%clk 0:04:27.2]} 20. Qxd4 {[%clk 0:03:33.8]}
20... Nc2+ {[%clk 0:04:26.4]} 21. Kd2 {[%clk 0:03:32.9]} 21... Nxd4 {[%clk
0:04:25.6]} 0-1

[Event "Live Chess"]
[Site "Chess.com"]
[Date "2023.05.21"]
[Round "-"]
[White "Long1968"]
[Black "minenko-1958"]
[Result "0-1"]
[WhiteElo "1045"]
[BlackElo "1430"]
[TimeControl "300"]
[EndTime "23:19:05 PDT"]
[Termination "minenko-1958 won on time"]

1. e4 {[%clk 0:04:57.1]} 1... e5 {[%clk 0:04:58.5]} 2. f4 {[%clk 0:04:54.8]}
2... exf4 {[%clk 0:04:56.9]} 3. Bc4 {[%clk 0:04:52.1]} 3... Bc5 {[%clk 0:04:46]}
4. Nf3 {[%clk 0:04:39.3]} 4... Nh6 {[%clk 0:04:35.5]} 5. d4 {[%clk 0:04:34.7]}
5... Bb6 {[%clk 0:04:30.9]} 6. Bxf4 {[%clk 0:04:31]} 6... d6 {[%clk 0:04:23.2]}
7. Nc3 {[%clk 0:04:25.6]} 7... Ba5 {[%clk 0:04:05.8]} 8. O-O {[%clk 0:04:18]}
8... Bxc3 {[%clk 0:04:04.1]} 9. bxc3 {[%clk 0:04:14.1]} 9... Ng4 {[%clk
0:03:45.8]} 10. Ng5 {[%clk 0:03:50.4]} 10... O-O {[%clk 0:03:37.5]} 11. Nxf7
{[%clk 0:03:13.3]} 11... Rxf7 {[%clk 0:03:35.7]} 12. Bxd6 {[%clk 0:03:07.1]}
12... Qxd6 {[%clk 0:03:08.1]} 13. e5 {[%clk 0:02:04.4]} 13... Qh6 {[%clk
0:03:00.5]} 14. Qxg4 {[%clk 0:00:36.3]} 14... Bxg4 {[%clk 0:02:57.2]} 15. Rxf7
{[%clk 0:00:31.8]} 15... Be6 {[%clk 0:02:46.1]} 16. Bxe6 {[%clk 0:00:16]} 16...
Qxe6 {[%clk 0:02:43.9]} 17. Rxc7 {[%clk 0:00:10.9]} 17... b6 {[%clk 0:02:32.5]}
0-1